fUSD/lending_fUSD_20240708
["ID","MTS","AMOUNT","RATE_DAILY","PERIOD"]
[331505493,1720444471570,-2744.63,0.00052054,120]
[331505494,1720444471654,-2267.0,0.00052054,120]
[331505495,1720444471739,-500.0,0.00052054,120]
[331505496,1720444471822,-574.0,0.00052054,120]
[331505497,1720444471906,-775.01,0.00052054,120]
[331505498,1720444471988,-500.0,0.00052054,120]
[331505499,1720444472070,-500.0,0.00052054,120]
[331505500,1720444472150,-500.0,0.00052054,90]
[331505501,1720444472237,-500.0,0.00052054,120]
[331505502,1720444472322,-1695.04,0.00052054,120]
[331505503,1720444472417,-500.0,0.00052054,120]
[331505504,1720444472496,-500.0,0.00052054,120]
[331505505,1720444472584,-1245.56,0.00052054,120]
[331505506,1720444472669,-330.32629063,0.00052054,120]
[331505507,1720444472752,-785.15,0.00052054,120]
[331505508,1720444473040,-1245.98,0.00052054,120]
[331505509,1720444473120,-1155.34,0.00052054,120]
[331505510,1720444473202,-500.0,0.00052054,120]
[331505511,1720444473282,-555.03,0.00052054,120]
[331505512,1720444473362,-500.0,0.00052054,120]
[331505513,1720444473443,-803.39,0.00052054,120]
[331505514,1720444473523,-500.0,0.00052054,120]
[331505515,1720444473603,-1305.54,0.00052054,120]
[331505516,1720444473685,-949.65,0.00052054,120]
[331505517,1720444473766,-500.0,0.00052054,120]
[331505518,1720444473851,-500.0,0.00052054,120]
[331505519,1720444473933,-500.0,0.00052054,120]
[331505520,1720444474024,-1347.23,0.00052054,120]
[331505521,1720444474116,-568.39,0.00052054,120]
[331505522,1720444474209,-500.0,0.00052054,120]
[331505523,1720444474295,-500.0,0.00052054,120]
[331505524,1720444474379,-784.35,0.00052054,120]
[331505525,1720444474462,-796.74,0.00052054,120]
[331505526,1720444474547,-500.0,0.00052054,120]
[331505527,1720444474630,-500.0,0.00052054,120]
[331505528,1720444474715,-838.64,0.00052054,120]
[331505529,1720444474799,-500.0,0.00052054,120]
[331505530,1720444474881,-739.18,0.00052054,120]
[331505531,1720444474965,-995.21,0.00052054,120]
[331505532,1720444475052,-1155.36,0.00052054,120]
[331505533,1720444475136,-751.81,0.00052054,120]
[331505534,1720444475220,-1142.72,0.00052054,120]
[331505535,1720444475308,-2126.32,0.00052054,120]
[331505536,1720444475395,-1163.78,0.00052054,120]
[331505537,1720444475479,-743.53,0.00052054,120]
[331505538,1720444475562,-500.0,0.00052054,120]
[331505539,1720444475649,-934.66,0.00052054,120]
[331505540,1720444475733,-995.22,0.00052054,120]
[331505541,1720444475817,-784.36,0.00052054,120]
[331505542,1720444475902,-1658.26,0.00052054,120]
[331505543,1720444475987,-1579.18,0.00052054,120]
[331505544,1720444476072,-500.0,0.00052054,120]
[331505545,1720444476156,-500.0,0.00052054,120]
[331505546,1720444476243,-580.63,0.00052054,120]
[331505547,1720444476329,-500.0,0.00052054,120]
[331505548,1720444476419,-500.0,0.00052054,120]
[331505549,1720444476507,-500.0,0.00052054,120]
[331505550,1720444476594,-181.38730252,0.00052054,120]
[331505551,1720444476684,-693.77,0.00052054,120]
[331505552,1720444476770,-633.12,0.00052054,120]
[331505553,1720444476857,-1079.99,0.00052054,120]
[331505554,1720444476945,-510.79,0.00052054,120]
[331505555,1720444477033,-500.0,0.00052054,120]
[331505556,1720444477120,-534.95,0.00052054,120]
[331505557,1720444477208,-500.0,0.00052054,120]
[331505558,1720444477293,-808.16,0.00052054,120]
[331505559,1720444477380,-2055.98,0.00052054,120]
[331505560,1720444477467,-652.14,0.00052054,120]
[331505561,1720444477546,-500.0,0.00052054,120]
[331505562,1720444477626,-837.72,0.00052054,120]
[331505563,1720444477705,-500.0,0.00052054,120]
[331505564,1720444477784,-974.55,0.00052054,120]
[331505565,1720444477862,-500.0,0.00052054,120]
[331505566,1720444477944,-500.0,0.00052054,120]
[331505567,1720444478024,-668.71,0.00052054,120]
[331505568,1720444478105,-918.92,0.00052054,120]
[331505569,1720444478184,-733.46,0.00052054,120]
[331505570,1720444478265,-500.0,0.00052054,120]
[331505571,1720444478350,-777.5,0.00052054,120]
[331505572,1720444478428,-500.0,0.00052054,120]
[331505573,1720444478507,-500.0,0.00052054,120]
[331505574,1720444478586,-843.38,0.00052054,120]
[331505575,1720444478664,-500.0,0.00052054,120]
[331505576,1720444478743,-500.0,0.00052054,120]
[331505577,1720444478823,-852.37,0.00052054,120]
[331505578,1720444478900,-500.0,0.00052054,120]
[331505579,1720444478985,-500.0,0.00052054,120]
[331505580,1720444479077,-500.0,0.00052054,120]
[331505581,1720444479171,-1186.97,0.00052054,120]
[331505582,1720444479260,-500.0,0.00052054,120]
[331505583,1720444479349,-500.0,0.00052054,120]
[331505584,1720444479438,-1241.83,0.00052054,120]
[331505585,1720444479528,-807.64,0.00052054,120]
[331505586,1720444479619,-500.0,0.00052054,120]
[331505587,1720444479710,-500.0,0.00052054,120]
[331505588,1720444479800,-803.38,0.00052054,120]
[331505589,1720444479886,-657.3,0.00052054,120]
[331505590,1720444479977,-1355.78,0.00052054,120]
[331505591,1720444480068,-500.0,0.00052054,120]
[331505592,1720444480163,-280.38759604,0.00052054,120]
[331505593,1720444480261,-646.85,0.00052054,120]
[331505594,1720444480353,-500.0,0.00052054,120]
[331505595,1720444480440,-500.0,0.00052054,120]
[331505596,1720444480525,-500.0,0.00052054,120]
[331505597,1720444480608,-500.0,0.00052054,120]
[331505598,1720444480692,-500.0,0.00052054,120]
[331505599,1720444480774,-500.0,0.00052054,120]
[331505600,1720444480855,-500.0,0.00052054,120]
[331505601,1720444480940,-500.0,0.00052054,120]
[331505602,1720444481024,-525.31,0.00052054,120]
[331505603,1720444481108,-682.0,0.00052054,120]
[331505604,1720444481191,-500.0,0.00052054,120]
[331505605,1720444481275,-500.0,0.00052054,120]
[331505606,1720444481358,-500.0,0.00052054,120]
[331505607,1720444481443,-1095.38,0.00052054,120]
[331505608,1720444481528,-1081.98,0.00052054,120]
[331505609,1720444481608,-766.48,0.00052054,120]
[331505610,1720444481689,-500.0,0.00052054,120]
[331505611,1720444481773,-500.0,0.00052054,120]
[331505612,1720444482069,-500.0,0.00052054,120]
[331505613,1720444482157,-712.75,0.00052054,120]
[331505614,1720444482243,-500.0,0.00052054,120]
[331505615,1720444482329,-485.3085097,0.00052054,120]
[331505616,1720444482414,-887.36,0.00052054,120]
[331505617,1720444482497,-989.73,0.00052054,120]
[331505618,1720444482575,-568.6,0.00052054,120]
[331505619,1720444482655,-500.0,0.00052054,120]
[331505620,1720444482738,-187.36519691,0.00052054,120]
[331505621,1720444482817,-316.16756699,0.00052054,120]
[331505622,1720444482894,-665.12,0.00052054,120]
[331505623,1720444482970,-500.0,0.00052054,120]
[331505624,1720444483047,-500.0,0.00052054,120]
[331505625,1720444483124,-500.0,0.00052054,120]
[331505626,1720444483204,-785.44,0.00052054,120]
[331505627,1720444483282,-2486.56,0.00052054,120]
[331505628,1720444483364,-500.0,0.00052054,120]
[331505629,1720444483447,-500.0,0.00052054,120]
[331505630,1720444483529,-500.0,0.00052054,120]
[331505631,1720444483607,-500.0,0.00052054,120]
[331505632,1720444483689,-500.0,0.00052054,120]
[331505633,1720444483772,-334.21278301,0.00052054,120]
[331505634,1720444483851,-500.0,0.00052054,120]
[331505635,1720444483932,-500.0,0.00052054,120]
[331505636,1720444484022,-500.0,0.00052054,120]
[331505637,1720444484116,-891.8,0.00052054,120]
[331505638,1720444484208,-500.0,0.00052054,120]
[331505639,1720444484293,-500.0,0.00052054,120]
[331505640,1720444484378,-608.44,0.00052054,120]
[331505641,1720444484464,-500.0,0.00052054,120]
[331505642,1720444484546,-705.57,0.00052054,120]
[331505643,1720444484629,-500.0,0.00052054,120]
[331505644,1720444484712,-500.0,0.00052054,120]
[331505645,1720444484793,-502.79,0.00052054,120]
[331505646,1720444484873,-500.0,0.00052054,120]
[331505647,1720444484957,-605.18,0.00052054,120]
[331505648,1720444485039,-200.4397987,0.00052054,120]
[331505649,1720444485120,-500.0,0.00052054,120]
[331505650,1720444485205,-581.07230844,0.00052054,120]
[331505651,1720444485288,-500.0,0.00052054,120]
[331505652,1720444485371,-500.0,0.00052054,120]
[331505653,1720444485455,-500.0,0.00052054,120]
[331505654,1720444485539,-500.0,0.00052054,120]
[331505655,1720444485623,-500.0,0.00052054,120]
[331505656,1720444485710,-500.0,0.00052054,120]
[331505657,1720444485792,-500.0,0.00052054,120]
[331505658,1720444485877,-500.0,0.00052054,120]
[331505659,1720444485966,-712.81,0.00052054,120]
[331505660,1720444486052,-534.72,0.00052054,120]
[331505661,1720444486145,-1760.36,0.00052054,120]
[331505662,1720444486232,-800.08,0.00052054,120]
[331505663,1720444486319,-894.69,0.00052054,120]
[331505664,1720444486404,-500.0,0.00052054,120]
[331505665,1720444486488,-723.54,0.00052054,120]
[331505666,1720444486570,-530.59,0.00052054,120]
[331505667,1720444486657,-526.6541094,0.00052054,120]
[331505668,1720444486742,-839.95,0.00052054,120]
[331505669,1720444486832,-500.0,0.00052054,120]
[331505670,1720444486917,-511.1,0.00052054,120]
[331505671,1720444487002,-290.93428496,0.00052054,120]
[331505672,1720444487092,-760.52,0.00052054,120]
[331505673,1720444487177,-500.0,0.00052054,120]
[331505674,1720444487267,-866.49,0.00052054,120]
[331505675,1720444487355,-500.0,0.00052054,120]
[331505676,1720444487451,-500.0,0.00052054,120]
[331505677,1720444487537,-500.0,0.00052054,120]
[331505678,1720444487616,-568.61765694,0.00052054,120]
[331505679,1720444487698,-500.0,0.00052054,120]
[331505680,1720444487783,-500.0,0.00052054,120]
[331505681,1720444487865,-500.0,0.00052054,120]
[331505682,1720444487960,-500.0,0.00052054,120]
[331505683,1720444488047,-500.0,0.00052054,120]
[331505684,1720444488139,-500.0,0.00052054,120]
[331505685,1720444488221,-500.0,0.00052054,120]
[331505686,1720444488301,-893.31,0.00052054,120]
[331505687,1720444488385,-500.0,0.00052054,120]
[331505688,1720444488467,-500.0,0.00052054,120]
[331505689,1720444488550,-500.0,0.00052054,120]
[331505690,1720444488635,-500.0,0.00052054,120]
[331505691,1720444488725,-203.45054172,0.00052054,120]
[331505692,1720444488814,-500.0,0.00052054,120]
[331505693,1720444488898,-500.0,0.00052054,120]
[331505694,1720444488985,-500.0,0.00052054,120]
[331505695,1720444489078,-500.0,0.00052054,120]
[331505696,1720444489169,-1290.88,0.00052054,120]
[331505697,1720444489260,-500.0,0.00052054,120]
[331505698,1720444489347,-500.0,0.00052054,120]
[331505699,1720444489436,-585.61,0.00052054,120]
[331505700,1720444489521,-574.25,0.00052054,120]
[331505701,1720444489605,-500.0,0.00052054,120]
[331505702,1720444489690,-500.0,0.00052054,120]
[331505703,1720444489775,-500.0,0.00052054,120]
[331505704,1720444489859,-162.95782266,0.00052054,120]
[331505705,1720444489948,-389.50835841,0.00052054,120]
[331505706,1720444490043,-480.95478287,0.00052054,120]
[331505707,1720444490131,-500.0,0.00052054,120]
[331505708,1720444490218,-891.99,0.00052054,120]
[331505709,1720444490306,-500.0,0.00052054,120]
[331505710,1720444490393,-518.21,0.00052054,120]
[331505711,1720444490479,-500.0,0.00052054,120]
[331505712,1720444490563,-500.0,0.00052054,120]
[331505713,1720444490644,-973.06,0.00052054,120]
[331505714,1720444490724,-1101.05,0.00052054,120]
[331505715,1720444490802,-500.0,0.00052054,120]
[331505716,1720444491084,-326.08944028,0.00052054,120]
[331505717,1720444491170,-1143.52,0.00052054,120]
[331505718,1720444491257,-500.0,0.00052054,120]
[331505719,1720444491341,-589.06,0.00052054,120]
[331505720,1720444491428,-500.0,0.00052054,120]
[331505721,1720444491513,-729.17,0.00052054,120]
[331505722,1720444491596,-500.0,0.00052054,120]
[331505723,1720444491675,-765.16,0.00052054,120]
[331505724,1720444491755,-538.46,0.00052054,120]
[331505725,1720444491839,-500.0,0.00052054,120]
[331505726,1720444491931,-500.0,0.00052054,120]
[331505727,1720444492024,-500.0,0.00052054,120]
[331505728,1720444492114,-577.54,0.00052054,120]
[331505729,1720444492204,-229.7971315,0.00052054,120]
[331505730,1720444492295,-987.37,0.00052054,120]
[331505731,1720444492394,-500.0,0.00052054,120]
[331505732,1720444492484,-500.0,0.00052054,120]
[331505733,1720444492570,-500.0,0.00052054,120]
[331505734,1720444492649,-707.5,0.00052054,120]
[331505735,1720444492730,-543.45,0.00052054,120]
[331505736,1720444492811,-943.37,0.00052054,120]
[331505737,1720444492894,-500.0,0.00052054,120]
[331505738,1720444492983,-500.0,0.00052054,120]
[331505739,1720444493066,-584.78,0.00052054,120]
[331505740,1720444493146,-500.0,0.00052054,120]
[331505741,1720444493228,-558.55,0.00052054,120]
[331505742,1720444493308,-500.0,0.00052054,120]
[331505743,1720444493389,-207.67076295,0.00052054,120]
[331505744,1720444493468,-718.31,0.00052054,120]
[331505745,1720444493549,-500.0,0.00052054,120]
[331505746,1720444493628,-511.83,0.00052054,120]
[331505747,1720444493707,-500.0,0.00052054,120]
[331505748,1720444493783,-500.0,0.00052054,120]
[331505749,1720444493857,-500.0,0.00052054,120]
[331505750,1720444493939,-500.0,0.00052054,120]
[331505751,1720444494028,-530.48898578,0.00052054,120]
[331505752,1720444494119,-588.46,0.00052054,120]
[331505753,1720444494211,-499.99525628,0.00052054,120]
[331505754,1720444494294,-500.0,0.00052054,120]
[331505755,1720444494379,-725.12,0.00052054,120]
[331505756,1720444494471,-510.12,0.00052054,120]
[331505757,1720444494562,-500.0,0.00052054,120]
[331505758,1720444494647,-1169.96,0.00052054,120]
[331505759,1720444494734,-272.1537345,0.00052054,120]
[331505760,1720444494819,-691.49,0.00052054,120]
[331505761,1720444494905,-500.0,0.00052054,120]
[331505762,1720444494994,-500.0,0.00052054,120]
[331505763,1720444495082,-500.0,0.00052054,120]
[331505764,1720444495168,-500.0,0.00052054,120]
[331505765,1720444495263,-500.0,0.00052054,120]
[331505766,1720444495360,-500.0,0.00052054,120]
[331505767,1720444495450,-736.89,0.00052054,120]
[331505768,1720444495538,-500.0,0.00052054,120]
[331505769,1720444495628,-500.0,0.00052054,120]
[331505770,1720444495724,-500.0,0.00052054,120]
[331505771,1720444495818,-561.83,0.00052054,120]
[331505772,1720444495907,-500.0,0.00052054,120]
[331505773,1720444496002,-500.0,0.00052054,120]
[331505774,1720444496095,-500.0,0.00052054,120]
[331505775,1720444496188,-500.0,0.00052054,120]
[331505776,1720444496281,-500.0,0.00052054,120]
[331505777,1720444496369,-500.0,0.00052054,120]
[331505778,1720444496464,-757.16,0.00052054,120]
[331505779,1720444496557,-519.91,0.00052054,120]
[331505780,1720444496647,-747.04,0.00052054,120]
[331505781,1720444496741,-500.0,0.00052054,120]
[331505782,1720444496826,-613.38,0.00052054,30]
[331505783,1720444496911,-500.0,0.00052054,120]
[331505784,1720444496997,-500.0,0.00052054,120]
[331505785,1720444497086,-552.79,0.00052054,120]
[331505786,1720444497176,-500.0,0.00052054,120]
[331505787,1720444497261,-591.58,0.00052054,120]
[331505788,1720444497353,-1172.19,0.00052054,120]
[331505789,1720444497442,-500.0,0.00052054,120]
[331505790,1720444497533,-557.8,0.00052054,120]
[331505791,1720444497623,-1249.26,0.00052054,120]
[331505792,1720444497706,-500.0,0.00052054,120]
[331505793,1720444497789,-807.07,0.00052054,120]
[331505794,1720444497874,-500.0,0.00052054,120]
[331505795,1720444497962,-500.0,0.00052054,120]
[331505796,1720444498044,-800.07,0.00052054,120]
[331505797,1720444498129,-500.0,0.00052054,120]
[331505798,1720444498216,-967.69,0.00052054,120]
[331505799,1720444498300,-500.0,0.00052054,120]
[331505800,1720444498382,-500.0,0.00052054,120]
[331505801,1720444498467,-1110.78,0.00052054,120]
[331505802,1720444498551,-593.07,0.00052054,120]
[331505803,1720444498636,-666.97,0.00052054,120]
[331505804,1720444498719,-500.0,0.00052054,120]
[331505805,1720444498800,-663.11,0.00052054,120]
[331505806,1720444498882,-586.75,0.00052054,120]
[331505807,1720444498968,-500.0,0.00052054,120]
[331505808,1720444499059,-500.0,0.00052054,120]
[331505809,1720444499148,-500.0,0.00052054,120]
[331505810,1720444499234,-594.57,0.00052054,120]
[331505811,1720444499317,-521.91744913,0.00052054,120]
[331505812,1720444499401,-500.0,0.00052054,120]
[331505813,1720444499483,-500.0,0.00052054,120]
[331505814,1720444499567,-731.67,0.00052054,120]
[331505815,1720444499650,-500.0,0.00052054,120]
[331505816,1720444499732,-500.0,0.00052054,120]
[331505817,1720444499814,-727.03,0.00052054,120]
[331505818,1720444499899,-500.0,0.00052054,120]
[331505819,1720444499992,-500.0,0.00052054,120]
[331505820,1720444500293,-556.36,0.00052054,120]
[331505821,1720444500391,-678.58,0.00052054,120]
[331505822,1720444500491,-507.09,0.00052054,120]
[331505823,1720444500581,-828.76,0.00052054,120]
[331505824,1720444500667,-500.0,0.00052054,120]
[331505825,1720444500754,-500.0,0.00052054,120]
[331505826,1720444500844,-500.0,0.00052054,120]
[331505827,1720444500932,-564.32,0.00052054,120]
[331505828,1720444501021,-500.0,0.00052054,120]
[331505829,1720444501107,-730.6,0.00052054,120]
[331505830,1720444501192,-890.2,0.00052054,120]
[331505831,1720444501278,-795.04,0.00052054,120]
[331505832,1720444501368,-500.0,0.00052054,120]
[331505833,1720444501457,-551.18,0.00052054,120]
[331505834,1720444501540,-500.0,0.00052054,120]
[331505835,1720444501622,-500.0,0.00052054,120]
[331505836,1720444501706,-788.58,0.00052054,120]
[331505837,1720444501783,-618.01,0.00052054,120]
[331505838,1720444501866,-500.0,0.00052054,120]
[331505839,1720444501952,-500.0,0.00052054,120]
[331505840,1720444502032,-720.18,0.00052054,120]
[331505841,1720444502113,-500.0,0.00052054,120]
[331505842,1720444502197,-500.0,0.00052054,120]
[331505843,1720444502280,-511.48,0.00052054,120]
[331505844,1720444502366,-500.0,0.00052054,120]
[331505845,1720444502449,-633.87,0.00052054,120]
[331505846,1720444502529,-500.0,0.00052054,120]
[331505847,1720444502607,-885.43,0.00052054,120]
[331505848,1720444502682,-500.0,0.00052054,120]
[331505849,1720444502758,-536.5,0.00052054,120]
[331505850,1720444502836,-500.0,0.00052054,120]
[331505851,1720444502913,-463.63377776,0.00052054,120]
[331505852,1720444502989,-500.0,0.00052054,120]
[331505853,1720444503064,-739.48,0.00052054,120]
[331505854,1720444503138,-500.0,0.00052054,120]
[331505855,1720444503216,-556.22,0.00052054,120]
[331505856,1720444503291,-500.0,0.00052054,120]
[331505857,1720444503366,-500.0,0.00052054,120]
[331505858,1720444503440,-658.89,0.00052054,120]
[331505859,1720444503515,-500.0,0.00052054,120]
[331505860,1720444503589,-508.93359612,0.00052054,120]
[331505861,1720444503664,-1110.08,0.00052054,120]
[331505862,1720444503742,-500.0,0.00052054,120]
[331505863,1720444503817,-735.58,0.00052054,120]
[331505864,1720444503892,-500.0,0.00052054,120]
[331505865,1720444503971,-500.0,0.00052054,120]
[331505866,1720444504061,-500.0,0.00052054,120]
[331505867,1720444504151,-508.6,0.00052054,120]
[331505868,1720444504239,-761.41,0.00052054,120]
[331505869,1720444504322,-500.0,0.00052054,120]
[331505870,1720444504402,-757.98,0.00052054,120]
[331505871,1720444504485,-500.0,0.00052054,120]
[331505872,1720444504566,-500.0,0.00052054,120]
[331505873,1720444504654,-500.0,0.00052054,120]
[331505874,1720444504736,-744.56,0.00052054,120]
[331505875,1720444504821,-500.0,0.00052054,120]
[331505876,1720444504906,-820.08,0.00052054,120]
[331505877,1720444504989,-571.86,0.00052054,120]
[331505878,1720444505070,-976.88,0.00052054,120]
[331505879,1720444505151,-795.49,0.00052054,120]
[331505880,1720444505233,-633.46,0.00052054,120]
[331505881,1720444505315,-1023.57,0.00052054,120]
[331505882,1720444505399,-500.0,0.00052054,120]
[331505883,1720444505479,-500.0,0.00052054,120]
[331505884,1720444505556,-500.0,0.00052054,120]
[331505885,1720444505633,-732.16,0.00052054,120]
[331505886,1720444505713,-500.0,0.00052054,120]
[331505887,1720444505792,-500.0,0.00052054,120]
[331505888,1720444505870,-500.0,0.00052054,120]
[331505889,1720444505949,-596.04,0.00052054,120]
[331505890,1720444506028,-584.19,0.00052054,120]
[331505891,1720444506107,-1250.0,0.00052054,120]
[331505892,1720444506186,-500.0,0.00052054,120]
[331505893,1720444506264,-500.0,0.00052054,120]
[331505894,1720444506342,-1319.76,0.00052054,120]
[331505895,1720444506429,-220.30388722,0.00052054,120]
[331505896,1720444506515,-500.0,0.00052054,120]
[331505897,1720444506594,-500.0,0.00052054,120]
[331505898,1720444506672,-777.23,0.00052054,120]
[331505899,1720444506752,-786.03,0.00052054,120]
[331505900,1720444506834,-500.0,0.00052054,120]
[331505901,1720444506916,-993.73,0.00052054,120]
[331505902,1720444507000,-857.25,0.00052054,120]
[331505903,1720444507082,-631.99,0.00052054,120]
[331505904,1720444507166,-500.0,0.00052054,120]
[331505905,1720444507247,-526.26,0.00052054,120]
[331505906,1720444507334,-500.0,0.00052054,120]
[331505907,1720444507421,-834.16,0.00052054,120]
[331505908,1720444507507,-710.28,0.00052054,120]
[331505909,1720444507590,-500.0,0.00052054,120]
[331505910,1720444507667,-500.0,0.00052054,120]
[331505911,1720444507742,-500.0,0.00052054,120]
[331505912,1720444507819,-907.14,0.00052054,120]
[331505913,1720444507898,-500.0,0.00052054,120]
[331505914,1720444507978,-500.0,0.00052054,120]
[331505915,1720444508059,-903.08,0.00052054,120]
[331505916,1720444508140,-500.0,0.00052054,120]
[331505917,1720444508227,-1205.65,0.00052054,120]
[331505918,1720444508307,-500.0,0.00052054,120]
[331505919,1720444508390,-183.19,0.00052054,120]
[331505920,1720444508483,-575.42,0.00052054,120]
[331505921,1720444508567,-524.88,0.00052054,120]
[331505922,1720444508654,-560.0,0.00052054,120]
[331505923,1720444508731,-1266.13,0.00052054,120]
[331505924,1720444509023,-500.0,0.00052054,120]
[331505925,1720444509114,-1038.93,0.00052054,120]
[331505926,1720444509208,-860.22,0.00052054,120]
[331505927,1720444509306,-500.0,0.00052054,120]
[331505928,1720444509402,-617.44,0.00052054,120]
[331505929,1720444509494,-1023.2,0.00052054,120]
[331505930,1720444509584,-844.36,0.00052054,120]
[331505931,1720444509670,-981.65,0.00052054,120]
[331505932,1720444509756,-1228.92,0.00052054,120]
[331505933,1720444509842,-726.85,0.00052054,120]
[331505934,1720444509931,-500.0,0.00052054,120]
[331505935,1720444510022,-1221.82,0.00052054,120]
[331505936,1720444510114,-500.0,0.00052054,120]
[331505937,1720444510205,-908.94,0.00052054,120]
[331505938,1720444510295,-597.71,0.00052054,120]
[331505939,1720444510382,-500.0,0.00052054,120]
[331505940,1720444510471,-694.82,0.00052054,120]
[331505941,1720444510556,-1246.01,0.00052054,120]
[331505942,1720444510645,-1155.33,0.00052054,120]
[331505943,1720444510728,-1101.3,0.00052054,120]
[331505944,1720444510810,-689.02,0.00052054,120]
[331505945,1720444510892,-500.0,0.00052054,120]
[331505946,1720444510979,-500.0,0.00052054,120]
[331505947,1720444511060,-500.0,0.00052054,120]
[331505948,1720444511141,-500.0,0.00052054,120]
[331505949,1720444511225,-889.1,0.00052054,120]
[331505950,1720444511307,-500.0,0.00052054,120]
[331505951,1720444511392,-656.56,0.00052054,120]
[331505952,1720444511479,-940.17,0.00052054,120]
[331505953,1720444511563,-1072.11,0.00052054,120]
[331505954,1720444511654,-1299.84,0.00052054,120]
[331505955,1720444511737,-500.0,0.00052054,120]
[331505956,1720444511823,-500.0,0.00052054,120]
[331505957,1720444511911,-869.62,0.00052054,120]
[331505958,1720444511996,-500.0,0.00052054,120]
[331505959,1720444512080,-929.28,0.00052054,120]
[331505960,1720444512165,-905.16,0.00052054,120]
[331505961,1720444512249,-500.0,0.00052054,120]
[331505962,1720444512335,-500.84,0.00052054,120]
[331505963,1720444512420,-716.75,0.00052054,120]
[331505964,1720444512507,-500.0,0.00052054,120]
[331505965,1720444512591,-753.1,0.00052054,120]
[331505966,1720444512669,-1023.46,0.00052054,120]
[331505967,1720444512749,-500.0,0.00052054,120]
[331505968,1720444512826,-500.0,0.00052054,120]
[331505969,1720444512904,-500.0,0.00052054,120]
[331505970,1720444512982,-810.25,0.00052054,120]
[331505971,1720444513060,-943.0,0.00052054,120]
[331505972,1720444513136,-629.86,0.00052054,120]
[331505973,1720444513221,-500.0,0.00052054,120]
[331505974,1720444513297,-500.0,0.00052054,120]
[331505975,1720444513374,-500.0,0.00052054,120]
[331505976,1720444513462,-500.0,0.00052054,120]
[331505977,1720444513544,-1153.51,0.00052054,120]
[331505978,1720444513623,-500.0,0.00052054,120]
[331505979,1720444513700,-500.0,0.00052054,120]
[331505980,1720444513773,-742.91,0.00052054,120]
[331505981,1720444513848,-683.08,0.00052054,120]
[331505982,1720444513924,-869.05,0.00052054,120]
[331505983,1720444514009,-1252.26,0.00052054,120]
[331505984,1720444514095,-728.18,0.00052054,120]
[331505985,1720444514186,-1516.47,0.00052054,120]
[331505986,1720444514272,-964.36,0.00052054,120]
[331505987,1720444514356,-500.0,0.00052054,120]
[331505988,1720444514440,-1626.66,0.00052054,120]
[331505989,1720444514520,-500.0,0.00052054,120]
[331505990,1720444514599,-1358.72,0.00052054,120]
[331505991,1720444514677,-1358.72,0.00052054,120]
[331505992,1720444514755,-1358.72,0.00052054,120]